bitfinex-derivatives/quotes_SOLF0:USTF0_20260123
["timestamp","ask_amount","ask_price","bid_price","bid_amount"]
[1769206104394,0.05902417,127.4,127.35,6.44610764]
[1769206104598,0.05902417,127.4,127.36,6.44610764]
[1769206106004,0.05902417,127.4,127.37,7.0739]
[1769206112906,6.50040447,127.4,127.34,6.65143769]
[1769206113702,13.57290447,127.4,127.34,13.72713769]
[1769206115608,6.50040447,127.4,127.35,7.0752]
[1769206119902,6.4413803,127.39,127.33,7.0763]
[1769206120511,0.05924828,127.37,127.33,7.0763]
[1769206121112,0.05924828,127.37,127.33,13.72773769]
[1769206121415,6.4413803,127.4,127.34,13.72713769]
[1769206121600,6.4413803,127.4,127.34,13.78520352]
[1769206123204,6.4413803,127.4,127.35,7.0751]
[1769206123410,7.0723,127.41,127.36,6.65143769]
[1769206123913,13.5136803,127.41,127.36,6.65143769]
[1769206130620,6.4413803,127.41,127.36,13.72603769]
[1769206133223,6.4413803,127.43,127.36,6.65143769]
[1769206135125,6.4413803,127.43,127.38,7.0735]
[1769206136122,6.4413803,127.45,127.35,6.65143769]
[1769206137130,13.5120803,127.44,127.38,7.0735]
[1769206138026,6.4413803,127.44,127.39,13.72443769]
[1769206138229,147.6493,127.49,127.39,6.65143769]
[1769206138230,6.4413803,127.49,127.39,6.65143769]
[1769206138432,6.4413803,127.49,127.4,6.65143769]
[1769206139418,6.4413803,127.49,127.43,7.12219169]
[1769206139626,0.05114355,127.46,127.43,6.70342938]
[1769206139818,6.4413803,127.49,127.43,6.70342938]
[1769206140927,6.4413803,127.49,127.45,7.0694]
[1769206141128,6.4413803,127.49,127.43,6.70342938]
[1769206141323,6.4413803,127.49,127.43,6.65143769]
[1769206142323,6.4413803,127.49,127.45,0.05671775]
[1769206150334,6.25656639,127.51,127.45,6.27999902]
[1769206151930,6.25656639,127.51,127.46,7.0691]
[1769206158348,6.25656639,127.51,127.46,13.29238127]
[1769206158639,123.9926,127.58,127.47,6.22328127]
[1769206158640,6.25656639,127.56,127.47,6.22328127]
[1769206159546,6.25656639,127.52,127.45,6.22328127]
[1769206160745,6.25656639,127.52,127.47,0.05843289]
[1769206160948,6.25656639,127.52,127.47,7.12693289]
[1769206161949,6.25656639,127.52,127.48,7.068]
[1769206167754,6.25656639,127.52,127.47,6.28171416]
[1769206168549,6.25656639,127.52,127.47,13.35001416]
[1769206170349,6.25656639,127.51,127.47,0.05843289]
[1769206171755,13.32296639,127.51,127.47,0.05843289]
[1769206176967,6.65345823,127.5,127.47,0.05843289]
[1769206182365,6.65345823,127.5,127.45,7.0696]
[1769206184076,13.71925823,127.52,127.46,13.67383074]
[1769206184368,6.65345823,127.52,127.46,6.60483074]
[1769206184766,6.65345823,127.56,127.47,6.60483074]
[1769206185984,6.65345823,127.54,127.49,7.0669]
[1769206190185,6.65345823,127.54,127.5,7.0667]
[1769206192783,13.71695823,127.57,127.5,13.67153074]
[1769206192982,13.71695823,127.57,127.52,6.60483074]
[1769206193882,13.71695823,127.57,127.51,7.0663]
[1769206194587,6.65345823,127.56,127.51,7.0663]
[1769206195584,6.65345823,127.56,127.5,6.60483074]
[1769206196898,6.65345823,127.56,127.5,13.67173074]
[1769206202500,6.65345823,127.56,127.51,7.0663]
[1769206240027,6.43111324,127.55,127.5,7.0668]
[1769206240525,6.43111324,127.55,127.5,13.60005238]
[1769206241718,330.67117483,127.6,127.52,6.53325238]
[1769206241719,13.49411324,127.57,127.52,6.53325238]
[1769206241915,6.43111324,127.56,127.51,7.0662]
[1769206245526,13.49361324,127.58,127.53,6.53325238]
[1769206246129,6.43111324,127.57,127.53,6.53325238]
[1769206246331,6.43111324,127.57,127.52,7.0657]
[1769206247326,13.49411324,127.57,127.51,13.59945238]
[1769206250227,6.43111324,127.56,127.51,13.59945238]
[1769206265140,13.49471324,127.56,127.51,6.53325238]
[1769206265541,7.0642,127.55,127.51,6.53325238]
[1769206268845,6.65127497,127.54,127.49,7.0674]
[1769206269045,6.70781469,127.54,127.49,13.2164998]
[1769206274054,13.77251469,127.54,127.49,13.2164998]
[1769206276255,6.70781469,127.54,127.49,13.2164998]
[1769206282661,6.70781469,127.54,127.5,6.1490998]
[1769206283766,6.70781469,127.54,127.48,13.2170998]
[1769206283968,6.70781469,127.54,127.48,6.1490998]
[1769206284162,6.65127497,127.54,127.48,6.1490998]
[1769206284360,0.0524039,127.52,127.48,6.1490998]
[1769206285464,6.70367887,127.52,127.47,7.0685]
[1769206288569,6.70367887,127.52,127.47,13.2175998]
[1769206296483,0.0524039,127.52,127.48,6.29069797]
[1769206307291,0.0524039,127.52,127.48,13.35859797]
[1769206316094,30.1041718,127.6,127.53,0.27243846]
[1769206316298,6.5341718,127.6,127.53,0.27243846]
[1769206316804,13.5947718,127.62,127.55,0.27243846]
[1769206317101,6.5341718,127.64,127.56,0.28832049]
[1769206317498,6.5341718,127.64,127.59,0.28832049]
[1769206319706,0.05727683,127.63,127.6,0.05118703]
[1769206321990,13.65124863,127.63,127.57,0.34202887]
[1769206326498,0.05727683,127.63,127.58,0.43580212]
[1769206326916,6.5341718,127.64,127.58,0.43580212]
[1769206327407,0.05793259,127.62,127.58,0.43580212]
[1769206331203,0.05793259,127.62,127.58,7.49870212]
[1769206334001,0.05793259,127.62,127.59,7.0626]
[1769206334706,6.5341718,127.66,127.6,7.0619]
[1769206336311,6.5341718,127.66,127.62,0.05311318]
[1769206336902,6.62285376,127.65,127.59,7.0626]
[1769206337302,6.56313809,127.65,127.59,7.0626]
[1769206337704,6.56313809,127.65,127.6,7.062]
[1769206338209,0.05050888,127.64,127.6,7.062]
[1769206343016,123.8586,127.72,127.61,0.04087193]
[1769206343214,6.58839253,127.73,127.61,109.8452]
[1769206343505,13.64379253,127.72,127.65,7.0592]
[1769206344109,6.58839253,127.71,127.65,7.0592]
[1769206344412,6.58839253,127.71,127.62,109.8366]
[1769206344913,6.58839253,127.71,127.65,7.059]
[1769206345105,6.58839253,127.71,127.65,7.09496392]
[1769206345303,111.09240223,127.75,127.62,109.8366]
[1769206345304,6.58839253,127.74,127.67,0.09194747]
[1769206345710,6.58839253,127.74,127.67,0.03596392]
[1769206346916,6.58839253,127.73,127.67,0.03596392]
[1769206347816,6.58839253,127.73,127.69,0.04948638]
[1769206348208,13.64339253,127.73,127.69,0.04948638]
[1769206348409,6.64209399,127.72,127.65,0.08839589]
[1769206349916,6.64209399,127.72,127.66,0.10553475]
[1769206350613,6.64209399,127.72,127.67,7.0581]
[1769206350818,0.05370146,127.72,127.68,0.12239463]
[1769206351315,6.58839253,127.74,127.68,0.12239463]
[1769206351620,0.04984021,127.71,127.68,0.12239463]
[1769206351818,0.04984021,127.71,127.66,0.13074816]
[1769206352919,0.04984021,127.71,127.67,7.90121364]
[1769206353314,0.04984021,127.71,127.67,7.95934387]
[1769206353717,13.64313383,127.76,127.69,0.80174766]
[1769206354012,6.58973383,127.76,127.69,0.80174766]
[1769206355016,6.58973383,127.76,127.71,0.05171655]
[1769206359618,6.58973383,127.76,127.71,0.894399]
[1769206361127,6.58973383,127.76,127.71,0.05171655]
[1769206363326,6.58973383,127.74,127.66,0.85758717]
[1769206364121,6.58973383,127.71,127.64,304.0567483]
[1769206364529,0.05148677,127.69,127.64,304.0567483]
[1769206364721,0.05148677,127.69,127.64,311.1165483]
[1769206365230,6.6412206,127.69,127.64,304.0567483]
[1769206365629,6.6412206,127.69,127.61,0.92509873]
[1769206366126,6.58973383,127.69,127.61,0.92509873]
[1769206367025,0.05980768,127.66,127.62,7.0608]
[1769206367535,0.05980768,127.66,127.61,0.92509873]
[1769206367834,6.64954151,127.66,127.61,0.92509873]
[1769206368034,6.64954151,127.66,127.6,7.0616]
[1769206369728,0.05980768,127.66,127.59,0.95663661]
[1769206369927,6.58973383,127.7,127.61,0.96397904]
[1769206370442,6.58973383,127.7,127.64,8.0309713]
[1769206370735,109.7312,127.75,127.65,0.9712713]
[1769206370736,6.58973383,127.72,127.65,0.9712713]
[1769206371230,0.05059482,127.7,127.65,0.9712713]
[1769206371534,6.64032865,127.7,127.63,0.97847072]
[1769206371942,6.58973383,127.7,127.63,0.97847072]
[1769206372331,0.05781455,127.68,127.63,0.97847072]
[1769206372732,6.64754838,127.68,127.62,7.0606]
[1769206373235,6.58973383,127.68,127.62,7.0606]
[1769206373430,0.05366955,127.66,127.62,7.0606]
[1769206373731,0.05366955,127.66,127.6,0.97728849]
[1769206373732,6.64340338,127.66,127.6,8.03888849]
[1769206373928,6.64340338,127.66,127.58,0.98444462]
[1769206374329,6.58973383,127.66,127.62,0.05628649]
[1769206374729,0.05513812,127.63,127.6,7.062]
[1769206377439,0.05513812,127.63,127.58,0.98444462]
[1769206379035,0.05513812,127.63,127.59,7.0626]
[1769206380133,0.05513812,127.63,127.59,8.09502971]
[1769206380329,6.58973383,127.65,127.59,8.09502971]
[1769206381740,0.06022959,127.63,127.59,8.09502971]
[1769206382243,6.78997194,127.63,127.56,1.04237597]
[1769206384044,6.72974235,127.62,127.56,1.04237597]
[1769206384842,0.05514147,127.6,127.56,1.04237597]
[1769206385241,0.05514147,127.6,127.56,7.0642]
[1769206386050,6.78488382,127.6,127.54,1.11975229]
[1769206387153,6.78488382,127.6,127.55,7.0648]
[1769206388042,6.78488382,127.6,127.54,7.0653]
[1769206389550,6.93458447,127.59,127.52,1.13825325]
[1769206390453,0.05289972,127.57,127.52,1.13825325]
[1769206390654,6.98748419,127.57,127.5,1.15644465]
[1769206391055,6.98748419,127.57,127.53,0.05374921]
[1769206391547,6.98748419,127.57,127.5,1.15644465]
[1769206392952,6.98748419,127.57,127.51,7.0669]
[1769206394057,6.93458447,127.56,127.53,0.05199496]
[1769206394849,6.93458447,127.55,127.49,7.0681]
[1769206395055,6.93458447,127.55,127.48,306.63734377]
[1769206396046,6.93458447,127.54,127.48,7.0687]
[1769206396246,0.05542114,127.53,127.48,7.0687]
[1769206396448,6.99000561,127.53,127.48,7.0687]
[1769206396753,6.99000561,127.53,127.47,1.29450528]
[1769206396953,6.99000561,127.53,127.45,1.30612935]
[1769206397464,6.93458447,127.53,127.45,1.30612935]
[1769206397757,0.05360348,127.5,127.45,1.30612935]
[1769206398144,6.93458447,127.52,127.46,1.31183016]
[1769206399050,6.93458447,127.52,127.48,7.0687]
[1769206400859,0.05371307,127.51,127.48,7.0687]
[1769206409374,0.05371307,127.51,127.49,7.0681]
[1769206410665,0.05371307,127.51,127.47,7.0687]
[1769206411167,0.05371307,127.51,127.48,7.0685]
[1769206411861,6.98829754,127.51,127.46,8.38123016]
[1769206412770,6.98829754,127.51,127.47,7.0692]
[1769206413370,6.98829754,127.51,127.46,1.31183016]
[1769206413371,0.05371307,127.51,127.48,7.0687]
[1769206413668,0.05371307,127.51,127.46,1.31183016]
[1769206414472,7.07802777,127.51,127.46,1.31183016]
[1769206414862,7.07802777,127.51,127.43,299.47520829]
[1769206415366,7.0243147,127.51,127.43,299.47520829]
[1769206415566,7.0243147,127.51,127.44,1.42439833]
[1769206415872,7.0243147,127.54,127.45,1.37341651]
[1769206416863,7.0243147,127.53,127.48,7.0686]
[1769206417169,0.05441673,127.51,127.48,7.0686]
[1769206417971,0.05441673,127.51,127.49,7.0681]
[1769206418876,7.0243147,127.55,127.49,8.45486713]
[1769206419069,7.0243147,127.55,127.47,1.38676713]
[1769206420176,7.0243147,127.54,127.49,7.0681]
[1769206420877,7.0243147,127.54,127.5,0.05156792]
[1769206421578,0.05608856,127.53,127.5,0.05156792]
[1769206422572,0.05608856,127.53,127.5,8.52280881]
[1769206423574,0.05608856,127.53,127.51,7.0669]
[1769206423777,7.0243147,127.56,127.51,7.0669]
[1769206425280,14.0886147,127.56,127.5,1.45520881]
[1769206425671,7.0243147,127.56,127.5,1.45520881]
[1769206427071,7.0243147,127.56,127.52,7.0663]
[1769206427782,14.0875147,127.58,127.53,0.05467411]
[1769206428077,7.0243147,127.58,127.53,0.05467411]
[1769206428278,0.05123329,127.57,127.53,0.05467411]
[1769206429464,0.05123329,127.57,127.53,7.12057411]
[1769206430977,7.07554799,127.57,127.53,0.05467411]
[1769206432880,7.07554799,127.57,127.53,7.12057411]
[1769206436485,7.07554799,127.57,127.54,7.0654]
[1769206437186,0.05123329,127.57,127.54,7.0654]
[1769206440286,0.05123329,127.57,127.55,7.0648]
[1769206440988,7.0243147,127.61,127.56,7.0643]
[1769206442488,7.0243147,127.61,127.57,0.05159772]
[1769206443480,6.95383032,127.6,127.54,7.0649]
[1769206443681,7.0089827,127.6,127.53,0.76695832]
[1769206443986,6.95383032,127.6,127.54,0.81855604]
[1769206444487,6.95383032,127.6,127.56,7.0639]
[1769206444690,6.95383032,127.6,127.56,7.11931122]
[1769206445889,6.95383032,127.6,127.56,0.05541122]
[1769206448594,6.98983162,127.59,127.54,7.0653]
[1769206449988,6.98983162,127.59,127.55,0.05552251]
[1769206450982,6.93179229,127.58,127.5,1.70819615]
[1769206451592,6.93179229,127.58,127.52,1.71100195]
[1769206452290,0.05758969,127.56,127.52,1.71100195]
[1769206452991,0.05758969,127.56,127.54,7.0652]
[1769206458896,0.05758969,127.56,127.53,7.0658]
[1769206460298,0.05758969,127.56,127.51,7.0666]
[1769206461798,0.05758969,127.56,127.51,8.77999912]
[1769206469103,6.98938198,127.56,127.51,8.77999912]
[1769206471403,6.98938198,127.56,127.52,0.05456548]
[1769206473003,6.98938198,127.56,127.52,7.12096548]
[1769206476101,6.98938198,127.56,127.45,116.7593978]
[1769206476302,6.68806289,127.51,127.45,6.7818978]
[1769206476806,6.68806289,127.56,127.47,13.8510978]
[1769206477408,13.8082203,127.53,127.47,13.8510978]
[1769206481304,13.8082203,127.53,127.47,6.7818978]
[1769206481608,6.68806289,127.52,127.47,6.7818978]
[1769206495419,13.75466289,127.52,127.47,6.7818978]
[1769206496721,6.68806289,127.5,127.45,6.7818978]
[1769206497519,0.05618066,127.49,127.45,6.7818978]
[1769206500618,6.68806289,127.48,127.43,6.7818978]
[1769206501119,6.68806289,127.48,127.39,6.7818978]
[1769206501425,0.057757,127.47,127.42,13.8537978]
[1769206501920,13.75746289,127.47,127.42,6.7818978]
[1769206502116,0.05548765,127.46,127.42,6.7818978]
[1769206502312,7.25590554,127.46,127.4,6.62306629]
[1769206502610,7.25590554,127.46,127.42,0.05361607]
[1769206503315,7.25590554,127.46,127.4,6.62306629]
[1769206504024,7.25590554,127.46,127.4,13.69616629]
[1769206505726,7.25590554,127.46,127.4,6.62306629]
[1769206506725,7.25590554,127.46,127.38,6.62306629]
[1769206507220,7.20041789,127.43,127.34,7.076]
[1769206507421,7.2550123,127.43,127.35,6.62306629]
[1769206507926,7.20041789,127.43,127.35,6.62306629]
[1769206508128,0.04963715,127.4,127.35,6.62306629]
[1769206508817,7.0712,127.44,127.38,7.36190321]
[1769206509623,7.29925812,127.43,127.36,7.36190321]
[1769206510124,0.05445391,127.41,127.38,0.05416679]
[1769206510520,0.05445391,127.41,127.38,7.41607]
[1769206511517,7.29925812,127.43,127.38,7.41607]
[1769206512728,0.05045099,127.42,127.38,7.41607]
[1769206529823,7.34970911,127.42,127.34,7.36190321]
[1769206530233,7.29925812,127.42,127.34,7.36190321]
[1769206530632,14.37315812,127.39,127.34,7.36190321]
[1769206531232,0.05127426,127.38,127.34,7.36190321]
[1769206533040,0.05127426,127.38,127.35,7.52014245]
[1769206537139,0.05127426,127.38,127.33,7.52014245]
[1769206537539,7.63645811,127.39,127.33,7.52014245]
[1769206537944,0.0508491,127.37,127.33,7.52014245]
[1769206538244,7.63645811,127.41,127.33,7.52014245]
[1769206538542,7.63645811,127.41,127.36,7.52014245]
[1769206539442,14.70955811,127.41,127.36,7.52014245]
[1769206539738,0.05820384,127.4,127.36,7.52014245]
[1769206546547,7.0718,127.43,127.36,7.52014245]
[1769206548048,7.0718,127.43,127.38,7.52014245]
[1769206548458,7.0718,127.43,127.39,0.05603871]
[1769206548848,0.05707367,127.42,127.39,0.05603871]
[1769206553359,7.63645811,127.41,127.36,7.52014245]
[1769206553858,14.70925811,127.41,127.36,7.52014245]
[1769206554057,7.63645811,127.41,127.36,7.52014245]
[1769206554660,0.0580021,127.4,127.36,7.52014245]
[1769206556752,0.0580021,127.4,127.36,14.59534245]
[1769206559161,0.0580021,127.4,127.34,14.59624245]
[1769206559162,7.69446021,127.4,127.34,14.59624245]
[1769206559459,7.63645811,127.4,127.34,7.52014245]
[1769206559857,0.0502461,127.38,127.34,7.52014245]
[1769206561960,7.68670421,127.38,127.32,7.52014245]
[1769206562264,7.45932265,127.4,127.32,7.52014245]
[1769206562460,7.45932265,127.42,127.34,7.61910306]
[1769206563962,7.0726,127.41,127.35,7.61910306]
[1769206564257,7.45932265,127.42,127.37,7.67345778]
[1769206564665,7.45932265,127.42,127.37,7.61910306]
[1769206565566,7.45932265,127.42,127.38,0.05982437]
[1769206566068,14.53132265,127.42,127.38,0.05982437]
[1769206566469,7.0715,127.43,127.38,7.67892743]
[1769206566670,7.0715,127.43,127.38,7.61910306]
[1769206567170,7.0715,127.43,127.39,0.05203361]
[1769206573478,7.0708,127.45,127.39,7.60647927]
[1769206573777,7.32121183,127.46,127.4,7.55444566]
[1769206574377,7.0705,127.45,127.4,7.55444566]
[1769206574579,7.32121183,127.46,127.4,7.55444566]
[1769206575188,7.32121183,127.46,127.42,0.05999439]
[1769206575985,14.39101183,127.46,127.42,0.05999439]
[1769206576188,7.32121183,127.45,127.42,0.05999439]
[1769206576394,7.32121183,127.45,127.4,7.55444566]
[1769206577588,14.39051183,127.47,127.41,7.55444566]
[1769206577793,0.05307107,127.44,127.41,7.61267084]
[1769206581283,7.32121183,127.47,127.41,7.61267084]
[1769206582491,14.38981183,127.49,127.41,7.61267084]
[1769206582697,7.32121183,127.51,127.41,7.61267084]
[1769206582991,14.38991183,127.49,127.42,14.62644566]
[1769206583185,0.05438687,127.47,127.42,14.62644566]
[1769206583996,0.05438687,127.47,127.42,7.55444566]
[1769206584499,0.05438687,127.47,127.43,0.05574256]
[1769206591706,7.3755987,127.47,127.4,7.55444566]
[1769206592496,7.0704,127.45,127.4,7.55444566]
[1769206592801,9.07954513,127.45,127.4,7.55444566]
[1769206593699,7.0704,127.45,127.4,7.55444566]
[1769206593999,7.64972557,127.48,127.42,7.44361935]
[1769206594199,7.64972557,127.48,127.43,9.45276448]
[1769206594500,9.6588707,127.5,127.43,9.45276448]
[1769206594901,7.0686,127.49,127.43,9.45276448]
[1769206595103,14.71832557,127.49,127.43,9.45276448]
[1769206595897,14.71832557,127.49,127.43,7.44361935]
[1769206600108,16.7274707,127.49,127.43,7.44361935]
[1769206602405,7.0688,127.48,127.43,7.44361935]
[1769206615213,14.71792557,127.49,127.43,7.44361935]
[1769206618318,7.64972557,127.49,127.44,7.44361935]
[1769206619018,9.65734334,127.49,127.44,7.44361935]
[1769206619520,7.64972557,127.5,127.45,7.44361935]
[1769206619912,9.65734334,127.47,127.43,7.44361935]
[1769206620621,9.65734334,127.45,127.4,7.44361935]
[1769206621425,2.00761777,127.41,127.38,7.44361935]
[1769206622613,2.06787462,127.41,127.38,7.44361935]
[1769206623020,2.06787462,127.41,127.38,7.4958781]
[1769206623327,0.06025685,127.41,127.38,7.4958781]
[1769206629020,2.06787462,127.41,127.38,0.05225875]
[1769206629317,2.00761777,127.39,127.36,7.81032929]
[1769206630214,1.777e-05,127.39,127.36,14.88552929]
[1769206630409,2.00761777,127.4,127.36,14.88552929]
[1769206630624,2.0578912,127.39,127.36,14.88552929]
[1769206631422,0.05027343,127.39,127.36,14.88552929]
[1769206632921,2.0578912,127.39,127.36,14.88552929]
[1769206633329,2.0578912,127.39,127.36,7.81032929]
[1769206634720,0.05027343,127.39,127.36,7.81032929]
[1769206635321,0.05027343,127.39,127.34,7.81032929]
[1769206637018,0.05027343,127.39,127.34,14.88672929]
[1769206637222,0.05027343,127.39,127.35,7.81032929]
[1769206637519,2.00761777,127.4,127.36,7.81032929]
[1769206638629,0.05912812,127.39,127.36,7.81032929]
[1769206639927,2.00761777,127.4,127.36,7.81032929]
[1769206641527,0.054688,127.39,127.36,14.88552929]
[1769206644130,10.02632788,127.41,127.37,7.0748]
[1769206644523,2.00761777,127.42,127.38,7.81032929]
[1769206644831,10.02632788,127.43,127.38,7.81032929]
[1769206645234,8.01871011,127.42,127.38,7.81032929]
[1769206645534,8.01871011,127.42,127.39,0.05665572]
[1769206650539,15.08971011,127.44,127.39,0.05665572]
[1769206650834,15.08971011,127.44,127.38,7.81032929]
[1769206651036,8.01871011,127.43,127.38,7.81032929]
[1769206651236,8.01871011,127.43,127.4,0.05991285]
[1769206653738,9.83197018,127.47,127.4,8.06388652]
[1769206654036,7.82435241,127.47,127.41,8.00397367]
[1769206654633,7.82435241,127.47,127.41,10.01159144]
[1769206655039,7.82435241,127.47,127.43,0.05402449]
[1769206655943,14.89425241,127.46,127.43,0.05402449]
[1769206656838,7.82435241,127.48,127.43,0.05402449]
[1769206657744,14.89315241,127.48,127.43,0.05402449]
[1769206660945,7.82435241,127.48,127.43,2.06164226]
[1769206661346,7.82435241,127.48,127.44,2.00761777]
[1769206664651,7.82435241,127.48,127.43,2.06164226]
[1769206665348,7.82435241,127.48,127.44,2.00761777]
[1769206666149,7.82435241,127.48,127.44,9.07851777]
[1769206666948,0.05566408,127.47,127.44,9.07851777]
[1769206670452,7.88001649,127.47,127.43,7.12552449]
[1769206672758,7.82435241,127.46,127.43,0.05402449]
[1769206674171,0.05566408,127.47,127.43,0.05402449]
[1769206675463,0.05566408,127.47,127.43,10.06561593]
[1769206675664,0.05566408,127.47,127.43,8.05799816]
[1769206676855,7.88001649,127.47,127.43,0.05402449]
[1769206682367,0.05566408,127.47,127.43,14.22009232]
[1769206682567,7.22571828,127.49,127.44,7.09456783]
[1769206683467,7.22571828,127.49,127.44,7.0709]
[1769206684767,7.27570195,127.48,127.44,7.0709]
[1769206686165,7.27570195,127.48,127.43,7.12552449]
[1769206686668,7.27570195,127.48,127.43,14.22009232]
[1769206700783,0.04998367,127.48,127.44,7.43024017]
[1769206701884,0.04998367,127.48,127.44,14.50114017]
[1769206702180,0.04998367,127.48,127.45,7.43024017]
[1769206706382,0.04998367,127.48,127.44,7.43024017]
[1769206741518,2.00760518,127.5,127.45,8.09559115]
[1769206741916,2.00760518,127.52,127.46,8.09559115]
[1769206742923,0.05415984,127.5,127.48,0.05698308]
[1769206746516,9.07350518,127.53,127.49,8.06623424]
[1769206747122,17.08079832,127.53,127.49,8.06623424]
[1769206747317,17.08079832,127.53,127.48,0.05698308]
[1769206747625,17.08079832,127.53,127.48,7.55056211]
[1769206751029,2.00760518,127.52,127.48,7.55056211]
[1769206755230,9.43625081,127.49,127.39,124.1804]
[1769206755434,2.00760518,127.48,127.41,2.00760518]
[1769206755937,9.43625081,127.49,127.41,2.00760518]
[1769206756338,9.43625081,127.49,127.44,7.0709]
[1769206756538,9.43625081,127.49,127.44,7.13055202]
[1769206757227,9.43625081,127.49,127.44,9.92338927]
[1769206758636,109.9181,127.53,127.44,9.92338927]
[1769206758637,2.00760518,127.5,127.45,2.81042549]
[1769206759237,2.00760518,127.5,127.46,0.04941759]
[1769206760037,9.07550518,127.5,127.46,0.04941759]
[1769206760240,2.00760518,127.5,127.46,0.04941759]
[1769206761742,0.05126839,127.49,127.46,0.04941759]
[1769206763540,0.05126839,127.49,127.47,2.89548396]
[1769206763747,2.00760518,127.51,127.47,2.89548396]
[1769206764942,2.00760518,127.51,127.47,9.96468396]
[1769206771150,7.42864563,127.52,127.48,3.00666401]
[1769206771448,9.43625081,127.52,127.48,3.00666401]
[1769206771648,2.00760518,127.52,127.48,3.00666401]
[1769206771843,2.00760518,127.52,127.49,0.05974027]
[1769206772443,9.43625081,127.54,127.49,3.10363216]
[1769206773038,7.82278233,127.53,127.49,3.10363216]
[1769206773239,9.83038751,127.53,127.49,3.10363216]
[1769206773749,9.83038751,127.53,127.49,0.05974027]
[1769206775145,2.00760518,127.52,127.49,0.05974027]
[1769206776047,2.06013256,127.52,127.47,3.0585962]
[1769206777153,2.06013256,127.52,127.48,0.05208797]
[1769206779649,0.05252738,127.52,127.48,3.16634876]
[1769206781154,7.11902738,127.52,127.48,3.16634876]
[1769206781450,0.05252738,127.52,127.48,3.16634876]
[1769206783356,0.05252738,127.52,127.48,10.23504876]
[1769206786358,0.05252738,127.52,127.49,7.0681]
[1769206786657,0.05252738,127.52,127.49,10.26689385]
[1769206793162,0.05252738,127.52,127.49,3.19879385]
[1769206803567,7.73416904,127.52,127.48,0.05208797]
[1769206803765,0.05252738,127.52,127.47,3.40167156]
[1769206804973,0.05252738,127.52,127.48,3.46222586]
[1769206809676,8.25649461,127.52,127.48,3.46222586]
[1769206809880,2.00626427,127.5,127.46,3.47057126]
[1769206811086,2.00626427,127.5,127.47,0.06033601]
[1769206813405,2.00626427,127.49,127.47,0.06033601]
[1769206813689,2.00626427,127.52,127.47,3.55973597]
[1769206813884,10.2102315,127.52,127.47,3.55973597]
[1769206814887,7.0671,127.51,127.47,3.55973597]
[1769206816692,17.2768315,127.52,127.47,3.55973597]
[1769206818093,17.2760315,127.54,127.47,3.55973597]
[1769206818594,17.2760315,127.54,127.47,3.49939996]
[1769206818797,17.2760315,127.54,127.49,0.05883265]
[1769206824994,213.81325433,127.58,127.5,3.57908279]
[1769206824995,17.2750315,127.56,127.5,3.57908279]
[1769206825391,8.20396723,127.55,127.5,3.57908279]
[1769206825695,8.20396723,127.55,127.52,0.05032305]
[1769206825888,8.20396723,127.55,127.5,3.57908279]
[1769206827201,8.20396723,127.55,127.51,0.05683612]
[1769206828205,15.26886723,127.55,127.51,0.05683612]
[1769206836009,8.20396723,127.55,127.51,0.05683612]
[1769206837405,15.26876723,127.55,127.51,0.05683612]
[1769206839106,7.0648,127.55,127.51,2.94367179]
[1769206841711,15.50579246,127.55,127.51,0.05683612]
[1769206842112,8.44099246,127.55,127.51,0.05683612]
[1769206858532,10.50480507,127.54,127.49,7.0681]
[1769206859629,10.50480507,127.54,127.5,0.05069571]
[1769206860232,10.44725673,127.51,127.43,303.19664312]
[1769206860533,10.44725673,127.49,127.44,2.93669446]
[1769206860931,10.44890564,127.48,127.43,307.33094866]
[1769206861134,10.44890564,127.47,127.43,307.33094866]
[1769206861531,0.05511782,127.46,127.43,307.33094866]
[1769206862235,10.03162921,127.49,127.44,10.781822]
[1769206862736,10.03162921,127.48,127.44,7.0707]
[1769206863037,8.02371603,127.48,127.44,7.0707]
[1769206863631,8.08361961,127.47,127.43,300.25994866]
[1769206863932,8.02371603,127.46,127.42,7.0716]
[1769206865839,8.02371603,127.46,127.42,9.07951318]
[1769206870234,8.02371603,127.46,127.42,7.0716]
[1769206872145,8.02371603,127.46,127.42,9.07951318]
[1769206874847,8.02371603,127.46,127.43,2.00791318]
[1769206878053,0.05990358,127.47,127.44,2.00791318]
[1769206880058,7.86608217,127.47,127.44,2.00791318]
[1769206882452,7.0676,127.5,127.46,2.00791318]
[1769206884258,7.80617859,127.49,127.46,2.00791318]
[1769206884758,7.80617859,127.49,127.45,2.00791318]
[1769206886361,7.80617859,127.48,127.45,2.00791318]
[1769206898278,8.06647487,127.5,127.45,2.00791318]
[1769206898575,7.0675,127.51,127.48,1.318e-05]
[1769206898776,7.0675,127.51,127.47,2.00791318]
[1769206898970,0.05593202,127.49,127.47,2.00791318]
[1769206899277,7.0675,127.51,127.47,2.00791318]
[1769206900478,6.22382616,127.5,127.47,2.00791318]
[1769206902465,6.22382616,127.5,127.39,110.0282]
[1769206902669,6.22382616,127.5,127.44,2.00791318]
[1769206903175,6.23363561,127.47,127.44,2.00791318]
[1769206903777,6.23363561,127.47,127.44,2.06305048]